bitfinex-derivatives/quotes_SOLF0:USTF0_20251202
["timestamp","ask_amount","ask_price","bid_price","bid_amount"]
[1764669851600,7.1065,126.66,126.64,3.2640896]
[1764669853305,0.05281718,126.67,126.64,3.2640896]
[1764669854407,7.15841718,126.67,126.64,3.2640896]
[1764669860699,112.52448109,126.74,126.65,3.21]
[1764669860905,112.52448109,126.74,126.65,5.25668109]
[1764669861110,112.52448109,126.74,126.66,3.21]
[1764669861710,0.05338948,126.71,126.69,0.0533683]
[1764669862015,0.05338948,126.71,126.69,3.2633683]
[1764669870515,0.05338948,126.71,126.69,0.0533683]
[1764669871118,0.05338948,126.71,126.69,3.2633683]
[1764669876014,0.05338948,126.71,126.69,0.0533683]
[1764669876414,0.05338948,126.71,126.69,3.2633683]
[1764669876923,0.05338948,126.71,126.69,0.0533683]
[1764669877125,0.05338948,126.71,126.69,3.2633683]
[1764669877329,7.15668948,126.71,126.69,3.2633683]
[1764669878333,0.05338948,126.71,126.69,3.2633683]
[1764669879433,0.05338948,126.71,126.69,10.3677683]
[1764669879729,0.05338948,126.71,126.7,3.31]
[1764669880528,0.05338948,126.71,126.7,10.4138]
[1764669889941,7.101,126.76,126.72,3.31]
[1764669890243,7.101,126.76,126.73,3.31]
[1764669891040,7.16049412,126.76,126.73,3.36447332]
[1764669896955,2.10617521,126.76,126.73,0.05447332]
[1764669899354,7.1016,126.74,126.73,0.05447332]
[1764669901051,7.1016,126.74,126.73,3.36447332]
[1764669901254,7.16029412,126.76,126.73,3.36447332]
[1764669901452,0.05949412,126.76,126.73,3.36447332]
[1764669901754,0.05949412,126.76,126.73,5.41115441]
[1764669901954,110.3866,126.84,126.76,3.31]
[1764669902149,110.3772,126.85,126.78,3.31]
[1764669902656,7.0965,126.84,126.79,3.31]
[1764669903059,0.05232577,126.83,126.8,3.36174523]
[1764669903859,0.05232577,126.83,126.8,0.05174523]
[1764669904164,7.0971,126.82,126.8,0.05174523]
[1764669910462,110.349,126.88,126.81,3.1]
[1764669910857,112.39328109,126.89,126.81,3.1]
[1764669911064,112.39328109,126.89,126.81,5.14668109]
[1764669911254,2.04668109,126.89,126.82,3.1]
[1764669911458,0.04981109,126.87,126.85,3.1]
[1764669915854,2.04668109,126.92,126.86,3.1]
[1764669916665,9.13868109,126.92,126.87,3.1]
[1764669916865,9.13868109,126.92,126.89,3.1]
[1764669917457,110.2865,126.96,126.89,3.1]
[1764669917458,2.04668109,126.94,126.89,3.1]
[1764669917662,2.04668109,126.94,126.91,3.1]
[1764669917864,2.04668109,126.94,126.9,0.05079755]
[1764669918470,7.0917,126.92,126.9,0.05079755]
[1764669919167,110.3312,126.9,126.84,3.1]
[1764669919767,7.0941,126.88,126.84,3.1]
[1764669920170,0.05160181,126.87,126.85,3.15364286]
[1764669920559,7.14610181,126.87,126.85,3.15364286]
[1764669923974,7.14610181,126.87,126.85,0.05364286]
[1764669931881,7.0949,126.86,126.85,0.05364286]
[1764669934482,7.0949,126.86,126.81,3.14]
[1764669934483,7.0965,126.84,126.81,3.14]
[1764669934684,110.3621,126.87,126.81,3.14]
[1764669934888,3.1862207,126.85,126.79,70.62]
[1764669935483,3.1862207,126.85,126.81,0.05717954]
[1764669935688,0.05193159,126.83,126.81,0.05717954]
[1764669935890,0.05193159,126.83,126.82,3.14]
[1764669936102,0.05193159,126.83,126.81,0.05717954]
[1764669936488,0.05193159,126.83,126.81,3.19717954]
[1764669938492,7.14853159,126.83,126.81,3.19717954]
[1764669939189,67.46,126.9,126.81,3.19717954]
[1764669939389,180.9712207,126.91,126.81,3.14]
[1764669939798,7.0939,126.88,126.82,3.09]
[1764669940297,0.05538693,126.86,126.85,3.09]
[1764669941800,7.0928,126.9,126.85,3.09]
[1764669946896,7.0928,126.9,126.86,3.09]
[1764669947096,7.0928,126.9,126.87,0.0583321]
[1764669947402,7.0928,126.9,126.87,3.1483321]
[1764669954606,7.092,126.92,126.87,3.1483321]
[1764669955307,3.1862207,126.98,126.88,3.09]
[1764669955505,3.1862207,126.98,126.92,0.05612732]
[1764669956304,292.56691995,127.02,126.92,3.14612732]
[1764669956305,3.1862207,127.01,126.92,3.14612732]
[1764669956600,113.4240207,127.01,126.95,0.06042856]
[1764669956805,7.0882,126.98,126.95,0.06042856]
[1764669958300,7.0882,126.98,126.95,3.15042856]
[1764669958896,7.0882,126.98,126.95,0.06042856]
[1764669960199,7.0882,126.98,126.95,3.15042856]
[1764669960600,110.2304,127.02,126.95,3.15042856]
[1764669960901,3.9909366,127.01,126.95,3.15042856]
[1764669961099,110.2304,127.02,126.95,3.15042856]
[1764669961298,7.0866,127.01,126.96,3.09]
[1764669961502,7.0866,127.01,126.98,3.09]
[1764669962107,7.0873,127.0,126.97,0.05349879]
[1764669963509,7.0873,127.0,126.97,3.14349879]
[1764669970210,7.0873,127.0,126.97,0.05349879]
[1764669970412,7.0873,127.0,126.97,3.31349879]
[1764669970718,113.4091207,127.03,126.97,3.31349879]
[1764669971618,7.0867,127.01,126.97,3.31349879]
[1764669974017,7.0867,127.01,126.97,0.05349879]
[1764669974320,3.1862207,127.03,126.97,0.05349879]
[1764669976020,3.1862207,127.03,126.97,3.31349879]
[1764669976321,7.0868,127.01,126.97,3.31349879]
[1764669976818,7.0868,127.01,126.97,10.40209879]
[1764669978817,3.1862207,127.03,126.98,3.26]
[1764669980323,7.0865,127.01,126.98,3.26]
[1764669980519,7.0865,127.01,126.98,3.31150618]
[1764669980723,7.0865,127.01,126.98,0.05150618]
[1764669981421,7.0876,126.99,126.98,0.05150618]
[1764669992432,7.0876,126.99,126.94,10.3504]
[1764669992433,2.0362824,127.0,126.94,3.26]
[1764669992733,2.0362824,126.98,126.94,3.21]
[1764669992926,2.0362824,126.98,126.93,67.42]
[1764669993133,7.0899,126.95,126.93,67.42]
[1764669993334,112.2998824,126.98,126.93,70.63]
[1764669993527,0.05410976,126.97,126.94,0.05149654]
[1764669994124,0.05410976,126.97,126.94,3.26149654]
[1764669994831,7.0893,126.96,126.94,3.26149654]
[1764669995034,0.05410976,126.97,126.94,3.26149654]
[1764669995536,7.14290976,126.97,126.94,3.26149654]
[1764670006042,7.0896,126.96,126.94,0.05149654]
[1764670006247,2.0362824,126.96,126.94,0.05149654]
[1764670006544,0.05410976,126.97,126.94,3.14149654]
[1764670006945,0.05410976,126.97,126.94,0.05149654]
[1764670007344,7.0893,126.96,126.94,0.05149654]
[1764670007840,7.0893,126.96,126.94,3.14149654]
[1764670008551,7.0893,126.96,126.94,0.05149654]
[1764670013057,7.0898,126.95,126.94,0.05149654]
[1764670013651,7.0906,126.94,126.89,7.093]
[1764670013959,2.0362824,126.94,126.89,3.09]
[1764670014759,2.0362824,126.94,126.88,67.32]
[1764670014760,0.05406524,126.93,126.9,3.14075549]
[1764670015548,0.05406524,126.93,126.91,3.09]
[1764670016856,0.05406524,126.93,126.9,0.05075549]
[1764670016857,0.05406524,126.93,126.9,3.14075549]
[1764670019865,7.14516524,126.93,126.9,3.14075549]
[1764670020051,7.14516524,126.93,126.9,0.05075549]
[1764670020256,7.14516524,126.93,126.9,3.14075549]
[1764670025469,7.14516524,126.93,126.91,3.09]
[1764670026466,0.05406524,126.93,126.91,3.09]
[1764670030472,0.05406524,126.93,126.92,3.19]
[1764670044380,0.00406524,126.93,126.92,10.2815]
[1764670044579,7.0893,126.96,126.93,3.19]
[1764670044976,7.0887,126.98,126.94,3.19]
[1764670045283,113.40975673,127.03,126.94,3.19]
[1764670045470,0.05687013,126.99,126.97,3.24012934]
[1764670048375,7.14457013,126.99,126.97,0.05012934]
[1764670048778,0.05687013,126.99,126.92,3.19]
[1764670049688,0.05687013,126.99,126.94,3.24892138]
[1764670049888,0.05908091,126.98,126.94,3.24892138]
[1764670050383,7.0888,126.97,126.94,3.24892138]
[1764670057890,7.0893,126.96,126.94,3.24892138]
[1764670058490,7.0893,126.96,126.94,0.05892138]
[1764670058788,7.0893,126.96,126.94,3.23892138]
[1764670063187,7.14738091,126.98,126.94,3.23892138]
[1764670066701,7.089,126.97,126.94,3.23892138]
[1764670072206,7.0893,126.96,126.94,3.23892138]
[1764670072605,7.0893,126.96,126.9,23.32154467]
[1764670072606,110.2824,126.96,126.9,3.18]
[1764670073512,7.14276002,126.94,126.92,0.05904082]
[1764670074808,7.091,126.93,126.92,0.05904082]
[1764670075506,7.14226002,126.94,126.92,3.23904082]
[1764670079718,0.05186002,126.94,126.92,3.23904082]
[1764670084601,7.14236002,126.94,126.92,3.23904082]
[1764670087816,0.05186002,126.94,126.92,10.33054082]
[1764670088018,0.05186002,126.94,126.93,3.18]
[1764670090506,7.0887,126.98,126.94,3.41]
[1764670091411,7.0887,126.98,126.95,3.41]
[1764670091610,7.14660268,126.98,126.95,3.47028299]
[1764670093519,0.05790268,126.98,126.95,3.47028299]
[1764670095022,0.05790268,126.98,126.95,10.56008299]
[1764670095222,0.05790268,126.98,126.96,3.41]
[1764670096927,0.05790268,126.98,126.96,10.4992]
[1764670097125,0.05790268,126.98,126.97,3.41]
[1764670102434,0.05790268,126.98,126.96,3.41]
[1764670103135,0.05790268,126.98,126.95,0.06028299]
[1764670103332,7.0888,126.97,126.95,0.06028299]
[1764670103633,7.0888,126.97,126.95,3.47028299]
[1764670104235,2.09457476,126.98,126.95,3.47028299]
[1764670104539,2.09457476,126.98,126.95,0.06028299]
[1764670105432,7.0893,126.96,126.95,0.06028299]
[1764670114239,7.14660268,126.98,126.95,3.36028299]
[1764670114841,7.0887,126.97,126.95,3.36028299]
[1764670115140,7.0887,126.97,126.95,0.06028299]
[1764670117746,0.05790268,126.98,126.95,0.06028299]
[1764670118851,7.0893,126.96,126.95,0.06028299]
[1764670124057,7.0911,126.93,126.9,3.12]
[1764670125057,7.14383386,126.93,126.9,3.176936]
[1764670128258,7.0915,126.92,126.9,3.176936]
[1764670128858,0.05273386,126.93,126.9,3.176936]
[1764670131460,0.05273386,126.93,126.9,0.056936]
[1764670132464,7.0917,126.92,126.9,0.056936]
[1764670132665,7.0917,126.92,126.9,3.176936]
[1764670138267,110.36023386,126.93,126.9,0.056936]
[1764670139066,7.0921,126.91,126.9,0.056936]
[1764670141171,7.0916,126.92,126.9,3.176936]
[1764670147980,0.05273386,126.93,126.9,3.176936]
[1764670148879,0.05273386,126.93,126.9,0.056936]
[1764670149175,0.05273386,126.93,126.9,3.256936]
[1764670149782,0.05273386,126.93,126.9,0.056936]
[1764670150169,7.0919,126.92,126.9,0.056936]
[1764670152382,7.0915,126.92,126.9,0.056936]
[1764670154984,7.0921,126.91,126.9,0.056936]
[1764670174095,110.3181,126.92,126.86,3.19]
[1764670174797,7.0934,126.89,126.86,3.19]
[1764670174995,110.3072,126.93,126.86,3.19]
[1764670175198,0.05600191,126.91,126.88,3.24868444]
[1764670175593,7.0932,126.9,126.88,3.24868444]
[1764670175895,0.05600191,126.91,126.88,3.24868444]
[1764670176094,7.0926,126.9,126.88,3.24868444]
[1764670177989,7.0932,126.89,126.88,3.24868444]
[1764670180001,7.0932,126.89,126.88,0.05868444]
[1764670195314,110.38090191,126.91,126.88,0.05868444]
[1764670195315,0.05600191,126.91,126.88,3.14868444]
[1764670195515,0.05600191,126.91,126.9,3.09]
[1764670196422,0.05600191,126.91,126.9,10.1826]
[1764670204934,0.05600191,126.91,126.89,3.09]
[1764670207338,7.14850191,126.91,126.88,0.05868444]
[1764670207728,7.14850191,126.91,126.88,3.14868444]
[1764670208035,0.05600191,126.91,126.88,3.14868444]
[1764670208932,0.05600191,126.91,126.88,10.24228444]
[1764670209135,0.05600191,126.91,126.89,3.26]
[1764670211631,3.18592934,126.98,126.89,3.26]
[1764670211830,110.2502,127.0,126.92,3.26]
[1764670212731,0.05215892,126.97,126.95,0.054908]
[1764670213133,7.14085892,126.97,126.95,0.054908]
[1764670220847,7.14085892,126.97,126.95,3.314908]
[1764670223144,7.14085892,126.97,126.95,0.054908]
[1764670227650,0.05215892,126.97,126.95,3.314908]
[1764670232855,0.05215892,126.97,126.96,10.4393]
[1764670233349,9.12437111,127.01,126.97,3.35]
[1764670234346,0.0574106,127.0,126.98,0.05688983]
[1764670236355,7.0876,126.99,126.98,0.05688983]
[1764670237157,0.0574106,127.0,126.98,0.05688983]
[1764670237764,7.0876,126.99,126.98,0.05688983]
[1764670238065,9.12487111,126.99,126.98,0.05688983]
[1764670240163,7.0876,126.99,126.98,0.05688983]
[1764670242166,7.0876,126.99,126.98,3.14688983]
[1764670242866,7.0876,126.99,126.98,0.05688983]
[1764670245169,7.0876,126.99,126.98,3.14688983]
[1764670250266,0.0574106,127.0,126.98,3.14688983]
[1764670255976,7.1445106,127.0,126.98,0.05688983]
[1764670256476,7.1445106,127.0,126.98,3.14688983]
[1764670258768,7.0876,126.99,126.98,0.05688983]
[1764670266986,9.12487111,126.99,126.98,0.05688983]
[1764670270585,0.0574106,127.0,126.98,3.23688983]
[1764670271082,0.0574106,127.0,126.98,0.05688983]
[1764670272483,7.0876,126.99,126.98,0.05688983]
[1764670274681,9.12487111,126.99,126.98,0.05688983]
[1764670282093,7.0896,126.96,126.92,3.18]
[1764670282300,2.03727111,126.97,126.92,3.18]
[1764670282989,7.0902,126.95,126.92,3.18]
[1764670283189,7.14500573,126.95,126.92,3.23037779]
[1764670283696,7.0908,126.94,126.92,3.23037779]
[1764670284402,0.05480573,126.95,126.92,0.05037779]
[1764670284789,0.05480573,126.95,126.92,3.23037779]
[1764670284988,7.0904,126.94,126.92,3.23037779]
[1764670285189,0.05480573,126.95,126.92,3.23037779]
[1764670286992,0.05480573,126.95,126.93,3.18]
[1764670295906,7.14470573,126.95,126.93,3.18]
[1764670296103,7.14470573,126.95,126.92,3.18037779]
[1764670296104,0.05480573,126.95,126.92,3.18037779]
[1764670296505,7.091,126.93,126.92,3.18037779]
[1764670299906,7.091,126.93,126.92,0.05037779]
[1764670300110,7.0904,126.94,126.92,3.19037779]
[1764670313536,7.14470573,126.95,126.92,3.19037779]
[1764670317837,30.97562958,127.04,126.96,3.14]
[1764670318141,3.18499768,127.06,126.96,3.14]
[1764670318341,3.18499768,127.06,126.97,3.14]
[1764670318928,0.05194035,127.03,127.0,3.1968779]
[1764670321746,147.79049768,127.07,127.0,3.1968779]
[1764670321747,117.48222958,127.12,127.0,3.1968779]
[1764670321945,3.18499768,127.1,127.0,3.14]
[1764670322745,0.05217331,127.06,127.03,0.05359025]
[1764670322942,0.05217331,127.06,127.03,3.19359025]
[1764670324451,0.05217331,127.06,127.03,0.05359025]
[1764670326950,7.13617331,127.06,127.03,0.05359025]
[1764670327956,7.0844,127.05,127.03,0.05359025]
[1764670331767,7.0844,127.05,126.97,3.21]
[1764670331768,110.2395,127.01,126.97,3.21]
[1764670332055,110.2456,127.0,126.95,3.21]
[1764670332253,110.2531,126.99,126.94,46.65]
[1764670332459,110.2634,126.98,126.94,46.65]
[1764670332656,110.32158803,126.97,126.95,0.05714498]
[1764670333464,7.0894,126.96,126.95,0.05714498]
[1764670340563,0.05088803,126.97,126.95,3.26714498]
[1764670342866,7.13968803,126.97,126.95,3.26714498]
[1764670343767,7.13968803,126.97,126.95,0.05714498]
[1764670344161,7.0893,126.96,126.95,0.05714498]
[1764670350060,9.1269456,126.96,126.95,0.05714498]
[1764670350577,7.0893,126.96,126.95,0.05714498]
[1764670355681,110.2977,126.94,126.9,17.83047435]
[1764670355877,112.3353456,126.94,126.9,3.21]
[1764670356780,7.0915,126.92,126.91,0.05812008]
[1764670357380,7.0915,126.92,126.91,3.26812008]
[1764670360478,7.0915,126.92,126.91,0.05812008]
[1764670364884,0.05925497,126.93,126.91,3.40812008]
[1764670369695,7.0915,126.92,126.91,0.05812008]
[1764670370190,0.05925497,126.93,126.91,3.40812008]
[1764670376198,0.05925497,126.93,126.91,18.02859443]
[1764670376606,0.05925497,126.93,126.92,3.35]
[1764670382108,22.61925497,126.93,126.92,3.35]
[1764670388818,1.83,127.01,126.92,113.9308456]
[1764670389015,1.83,127.01,126.98,14.71669258]
[1764670389414,3.14,127.0,126.97,14.71669258]
[1764670389717,3.14,127.0,126.98,14.71669258]
[1764670389718,3.14,126.99,126.98,14.71669258]
[1764670390420,3.14,126.99,126.97,14.77153109]
[1764670391414,3.14,126.99,126.97,0.05483851]
[1764670392620,3.19778974,127.0,126.97,0.05483851]
[1764670392920,31.40778974,127.0,126.97,0.05483851]
[1764670393508,3.14,126.99,126.97,0.05483851]
[1764670394610,28.26778974,127.0,126.98,16.75433818]
[1764670394920,16.06867522,127.0,126.99,81.99669258]
[1764670395525,16.06867522,127.0,126.99,69.3176456]
[1764670396412,16.06867522,127.0,126.99,83.94601173]
[1764670397120,16.06867522,127.0,126.99,69.3176456]
[1764670397319,16.06867522,127.0,126.99,83.93345386]
[1764670398324,16.06867522,127.0,126.99,81.89580826]
[1764670399220,16.06867522,127.0,126.99,81.87580826]
[1764670403912,16.06867522,127.0,126.99,76.98034427]
[1764670404713,16.06867522,127.0,126.99,67.26]
[1764670405212,16.06867522,127.0,126.99,76.97787076]
[1764670406223,16.06867522,127.0,126.99,67.26]
[1764670410028,16.06867522,127.0,126.99,76.97787076]
[1764670410218,16.06867522,127.0,126.99,67.26]
[1764670414427,16.06867522,127.0,126.99,84.06547076]
[1764670414734,19.35080197,127.01,126.99,77.52837861]
[1764670414735,18.31947719,127.01,126.99,77.52837861]
[1764670415036,18.31947719,127.01,127.0,14.56416115]
[1764670415331,18.31947719,127.01,127.0,14.56328725]
[1764670415532,0.05080197,127.01,127.0,14.56328725]
[1764670416230,0.05080197,127.01,126.99,88.91088725]
[1764670416428,0.05080197,127.01,127.0,9.71098724]
[1764670417631,0.05080197,127.01,126.99,88.91088725]
[1764670421240,0.05080197,127.01,127.0,9.71217616]
[1764670421428,0.05080197,127.01,126.99,88.91088725]
[1764670422638,0.05080197,127.01,127.0,9.7133586]
[1764670422942,0.05080197,127.01,126.99,88.91088725]
[1764670424331,0.05080197,127.01,127.0,14.56328725]
[1764670424525,0.05080197,127.01,126.99,74.3476]
[1764670424526,0.05080197,127.01,126.99,88.91088725]
[1764670425335,0.05080197,127.01,127.0,14.56328725]
[1764670425535,3.34080197,127.01,126.99,21.65088725]
[1764670425734,3.34080197,127.01,126.99,84.06938205]
[1764670426039,3.34080197,127.01,126.99,76.98178205]
[1764670427340,3.34080197,127.01,127.0,9.72178205]
[1764670431440,3.34080197,127.01,126.99,81.82328725]
[1764670431643,3.34080197,127.01,126.99,67.26]
[1764670432039,3.29,127.0,126.98,14.56328725]
[1764670432434,3.29,127.0,126.97,81.89812576]
[1764670433341,10.3776,126.99,126.98,14.56328725]
[1764670435745,10.3776,126.99,126.97,81.89812576]
[1764670435946,10.3782,126.98,126.97,67.33483851]
[1764670437141,3.29,126.95,126.94,14.56328725]
[1764670437445,3.29,126.95,126.93,14.56328725]
[1764670437644,10.3798,126.95,126.93,14.56328725]
[1764670438240,10.43022778,126.95,126.93,14.61569768]
[1764670438440,10.43022778,126.95,126.93,0.05241043]
[1764670438640,3.29,126.94,126.93,0.05241043]
[1764670441658,0.05042778,126.95,126.93,0.05241043]
[1764670443064,0.05042778,126.95,126.93,14.61569768]
[1764670445767,0.05042778,126.95,126.94,14.56328725]
[1764670452266,0.05042778,126.95,126.93,21.70659768]
[1764670453565,0.05042778,126.95,126.94,7.0904]
[1764670455463,3.31042778,126.95,126.93,0.05241043]
[1764670460976,3.26,126.94,126.88,14.56328725]
[1764670461169,3.26,126.94,126.87,81.84328725]
[1764670461670,3.26,126.94,126.87,67.28]
[1764670462177,3.26,126.91,126.89,0.05844495]
[1764670464874,10.3522,126.91,126.89,0.05844495]
[1764670465178,3.26,126.9,126.89,0.05844495]
[1764670465379,3.26,126.9,126.87,67.28]
[1764670466384,3.26,126.89,126.87,67.33486439]
[1764670466577,3.3138681,126.89,126.87,67.33486439]
[1764670467173,3.26,126.88,126.87,0.05486439]
[1764670467373,3.26,126.88,126.82,21.66008725]
[1764670467672,3.26,126.86,126.82,88.96008725]
[1764670468381,0.05119098,126.85,126.83,0.05480474]
[1764670468678,0.05119098,126.85,126.83,7.15130474]
[1764670468881,4.38119098,126.85,126.83,7.15130474]
[1764670471587,4.38119098,126.85,126.84,7.096]
[1764670472382,4.38119098,126.85,126.84,21.65928725]
[1764670473473,1.83365634,126.85,126.84,23.23928725]
[1764670473679,3.26,126.9,126.86,7.0948]
[1764670473876,3.26,126.9,126.87,67.32]
[1764670474583,3.31094127,126.9,126.87,67.37590619]
[1764670477887,3.31094127,126.9,126.87,74.47000619]
[1764670483396,18.2,126.89,126.87,74.47000619]
[1764670488898,18.2,126.89,126.88,7.0938]
[1764670504605,21.31,126.89,126.88,7.0938]
[1764670504905,3.11,126.88,126.87,67.31590619]
[1764670508214,3.11,126.88,126.87,74.41020619]
[1764670508506,18.06327473,126.89,126.87,86.93816296]
[1764670508914,18.06327473,126.89,126.88,7.0938]
[1764670509315,3.17094127,126.9,126.87,86.93816296]
[1764670510303,3.17094127,126.9,126.89,7.0932]
[1764670514219,0.05094127,126.9,126.89,7.0932]
[1764670522227,3.17094127,126.9,126.89,7.0932]
[1764670524416,0.05094127,126.9,126.89,7.0932]
[1764670529439,18.04,126.93,126.92,7.0915]
[1764670529631,18.04,126.93,126.92,93.95615742]
[1764670530732,1.438e-05,126.94,126.92,93.95615742]
[1764670534742,1.438e-05,126.94,126.93,62.0]
[1764670535042,1.438e-05,126.94,126.93,81.60465742]
[1764670535429,1.438e-05,126.94,126.93,62.0]
[1764670537944,1.438e-05,126.94,126.92,74.3515]
[1764670542562,1.438e-05,126.94,126.93,67.24]
[1764670542963,1.438e-05,126.94,126.93,74.331]
[1764670548165,3.41001438,126.94,126.93,74.331]
[1764670550063,3.41001438,126.94,126.93,67.24]
[1764670557763,4.99001438,126.94,126.91,0.05159312]
[1764670558066,3.41001438,126.94,126.91,0.05159312]
[1764670558472,3.41,126.93,126.91,0.05159312]
[1764670565972,3.41,126.92,126.91,0.05159312]
[1764670566776,10.5015,126.92,126.91,0.05159312]
[1764670567077,3.41,126.91,126.88,14.62146459]
[1764670567278,3.41,126.91,126.87,14.62146459]
[1764670567880,3.41,126.89,126.87,14.62146459]
[1764670568074,3.46496602,126.89,126.87,14.6773078]
[1764670568580,3.46496602,126.89,126.87,0.05584321]
[1764670569480,3.2,126.88,126.87,0.05584321]
[1764670572080,10.2938,126.88,126.87,0.05584321]
[1764670572976,10.2938,126.88,126.86,67.26]
[1764670572977,3.2,126.85,126.83,14.62146459]
[1764670573176,3.2,126.85,126.82,105.56069239]
[1764670573482,10.2955,126.85,126.82,105.56069239]
[1764670573983,10.34879091,126.85,126.82,105.61086113]
[1764670574380,3.2,126.83,126.82,81.93163333]
[1764670574574,3.2,126.83,126.82,67.31016874]
[1764670575884,3.2,126.83,126.82,0.05016874]
[1764670576979,10.2968,126.83,126.78,15.99348793]
[1764670577174,3.2,126.82,126.78,1.37202334]
[1764670577579,3.2,126.82,126.77,81.88146459]
[1764670577779,110.3888,126.84,126.77,81.88146459]
[1764670577780,3.2,126.8,126.77,81.88146459]
[1764670578085,3.25129156,126.8,126.77,67.3182938]
[1764670578285,3.2,126.79,126.77,67.3182938]
[1764670584982,3.2,126.79,126.72,110.4848]
[1764670584983,3.2,126.77,126.7,134.67658397]
[1764670585186,3.2,126.77,126.71,67.3]
[1764670585381,3.2,126.77,126.71,68.67283522]
[1764670586089,3.25679182,126.75,126.73,0.05957326]
[1764670586287,0.05354325,126.75,126.73,67.37957326]
[1764670587490,0.05354325,126.75,126.73,74.48167326]
[1764670588094,0.05354325,126.75,126.73,76.06167326]
[1764670588294,3.2,126.8,126.73,76.06167326]
[1764670588295,7.098,126.81,126.75,7.1005]
[1764670588690,10.2969,126.83,126.77,7.0994]
[1764670588895,10.2969,126.83,126.78,67.36]
[1764670589289,0.0555956,126.82,126.79,0.05679839]
[1764670592094,0.0555956,126.82,126.79,7.15519839]
[1764670596000,0.0555956,126.82,126.8,7.0982]
[1764670596697,3.1555956,126.82,126.79,0.05679839]
[1764670597903,3.1555956,126.82,126.79,7.15549839]
[1764670601707,0.0555956,126.82,126.79,7.15549839]
[1764670602910,3.4555956,126.82,126.79,7.15549839]
[1764670608010,3.4555956,126.82,126.79,0.05679839]
[1764670612616,0.0555956,126.82,126.79,0.05679839]
[1764670612810,0.0555956,126.82,126.8,7.0977]
[1764670613413,3.4555956,126.82,126.8,7.0977]
[1764670621929,3.4555956,126.82,126.78,7.0992]
[1764670623028,3.4555956,126.82,126.79,0.05445888]
[1764670623215,3.4,126.8,126.75,7.101]
[1764670623421,3.4,126.78,126.75,7.101]
[1764670624127,3.4,126.76,126.73,7.1017]
[1764670624425,3.45900787,126.76,126.73,7.1518908]
[1764670627324,0.05900787,126.76,126.73,7.1518908]
[1764670627527,0.05900787,126.76,126.74,7.1012]
[1764670629525,0.05900787,126.76,126.75,67.4]
[1764670630428,3.38,126.81,126.76,7.1001]
[1764670631528,3.43516224,126.8,126.77,0.05479788]
[1764670633837,3.38,126.79,126.77,0.05479788]
[1764670649054,3.43516224,126.8,126.77,7.15439788]
[1764670649952,0.05516224,126.8,126.77,7.15439788]
[1764670650553,0.05516224,126.8,126.78,7.0991]
[1764670650953,0.05516224,126.8,126.77,0.05479788]
[1764670651356,0.05516224,126.8,126.78,7.0988]
[1764670652263,0.05516224,126.8,126.78,74.4788]
[1764670652956,3.37516224,126.8,126.79,7.0988]
[1764670653661,3.37516224,126.8,126.78,67.38]
[1764670655663,3.37516224,126.8,126.78,74.4792]
[1764670658366,3.37516224,126.8,126.78,67.38]
[1764670659968,3.25,126.79,126.78,67.38]
[1764670671384,10.3488,126.79,126.78,67.38]
[1764670671674,10.3488,126.79,126.72,67.34]
[1764670671675,3.25,126.78,126.72,67.34]
[1764670672572,10.3512,126.75,126.74,0.05596244]
[1764670673273,7.1012,126.75,126.74,0.05596244]
[1764670676580,10.3512,126.75,126.74,0.05596244]
[1764670677983,3.25,126.75,126.74,0.05596244]
[1764670680781,3.25,126.75,126.71,68.71269984]
[1764670680977,3.25,126.75,126.71,67.34]
[1764670681173,3.25,126.75,126.67,19.60465742]
[1764670681372,3.25,126.73,126.68,7.105]
[1764670681568,3.25,126.73,126.68,8.47813315]
[1764670681882,0.0588737,126.72,126.69,0.05039919]
[1764670682783,3.3088737,126.72,126.69,0.05039919]
[1764670683787,3.3088737,126.72,126.69,7.15469919]
[1764670687881,0.0588737,126.72,126.7,7.1038]
[1764670688482,0.0588737,126.72,126.71,7.1033]
[1764670689290,3.1788737,126.72,126.69,0.05039919]
[1764670693388,3.1788737,126.72,126.7,7.1038]
[1764670697492,3.1788737,126.72,126.69,0.05039919]
[1764670698891,3.1788737,126.72,126.69,7.15479919]
[1764670699092,3.1788737,126.72,126.69,0.05039919]
[1764670700091,3.1788737,126.72,126.7,7.1038]